{"text_format":"1","workbook":"xlsx","n_sheets":5,"sheets":["1 Försättssida","2 Specifikation","3 Avtalstecknande","Admin","SysAdmin"],"not_rendered":{"charts":0,"images":2,"macros":1,"external_links":1,"defined_names":89,"comments":0,"pivot_tables":0},"unopened":[],"bounds":{"document_bytes":16777216,"sheet_cells":100000,"rows_first":2000,"rows_last":500,"rows_between":2000,"halvings":0,"cell_chars":16384,"cell_head_chars":4096},"cells_cut":0,"cells_raw":0,"read":"whole","date_system":"1900"}

{"sheet":"1 Försättssida","index":0,"n_rows":24,"n_cols":1,"rows_kept":24,"cut":false,"hidden":false,"merged":[]}
[]
[]
[]
[]
[]
[]
[]
[]
[]
[]
[]
["Avropsförfrågan - Förnyad konkurrensutsättning "]
["från Statens inköpscentrals ramavtal inom området "]
["IT konsulttjänster"]
[]
["96-76-2012 "]
[]
[]
[]
[]
["Avropsblankett"]
[]
[{"$f":"MID(CELL(\"filename\",A1),FIND(\"[\",CELL(\"filename\",A1))+1,FIND(\"]\",CELL(\"filename\",A1))-FIND(\"[\",CELL(\"filename\",A1))-1)","v":"Avropsblankett - IT Konsulttjanster (1,05) 2018-08-23.xlsm"}]
[1.05]

{"sheet":"2 Specifikation","index":1,"n_rows":193,"n_cols":36,"rows_kept":193,"cut":false,"hidden":false,"merged":[[56,22,56,23],[61,24,61,25],[110,18,112,23],[114,11,114,12],[110,17,112,17],[110,15,112,16],[113,20,114,21],[107,12,107,13],[81,16,81,23],[106,12,106,13],[105,12,105,13],[106,20,106,22],[103,16,103,23],[82,16,82,23],[83,16,83,23],[84,16,84,23],[85,16,85,23],[86,16,86,23],[87,16,87,23],[88,16,88,23],[89,16,89,23],[90,16,90,23],[91,16,91,23],[92,16,92,23],[166,15,166,22],[172,15,173,22],[174,15,174,22],[113,17,114,17],[115,18,115,19],[113,16,114,16],[103,1,103,2],[115,11,115,12],[59,6,59,11],[93,16,93,23],[94,16,94,23],[95,16,95,23],[96,16,96,23],[97,16,97,23],[98,16,98,23],[63,1,63,5],[70,1,70,9],[77,1,77,9],[160,1,160,8],[83,12,83,13],[103,12,103,13],[100,12,100,13],[101,12,101,13],[102,12,102,13],[56,24,56,25],[175,15,175,22],[179,15,180,22],[57,24,57,25],[59,24,59,25],[92,12,92,13],[94,12,94,13],[97,12,97,13],[67,11,70,13],[72,11,75,13],[84,12,84,13],[132,18,132,19],[113,18,114,19],[118,20,118,21],[116,20,116,21],[117,20,117,21],[117,18,117,19],[178,15,178,22],[113,22,114,23],[115,22,117,23],[118,18,118,19],[115,20,115,21],[116,18,116,19],[81,12,81,13],[52,6,52,11],[58,2,58,4],[58,6,58,11],[58,16,58,21],[58,22,58,23],[58,24,58,25],[48,22,48,23],[48,24,48,25],[49,2,49,4],[49,6,49,11],[49,16,49,21],[49,22,49,23],[49,24,49,25],[55,24,55,25],[54,2,54,4],[53,2,53,4],[53,16,53,21],[53,6,53,11],[52,16,52,21],[52,2,52,4],[53,24,53,25],[56,2,56,4],[57,2,57,4],[56,16,56,21],[46,16,46,21],[46,22,46,23],[46,24,46,25],[47,2,47,4],[47,6,47,11],[47,16,47,21],[47,22,47,23],[47,24,47,25],[45,2,45,4],[45,6,45,11],[45,16,45,21],[124,25,124,27],[141,1,141,8],[129,20,129,21],[139,1,139,5],[135,20,135,21],[130,1,136,13],[131,18,131,19],[142,1,142,8],[131,20,131,21],[123,17,124,18],[129,18,129,19],[136,20,136,21],[133,17,134,19],[130,20,130,21],[135,18,135,19],[132,20,132,21],[129,1,129,13],[10,15,10,18],[11,19,11,20],[13,15,13,17],[13,18,13,20],[12,15,12,18],[181,18,182,22],[23,6,23,8],[29,1,29,2],[29,3,29,4],[50,22,50,23],[51,16,51,21],[51,22,51,23],[22,3,22,4],[22,6,22,8],[29,6,29,7],[51,2,51,4],[39,22,39,23],[41,22,41,23],[42,2,42,4],[42,6,42,11],[42,16,42,21],[42,22,42,23],[43,2,43,4],[43,6,43,11],[10,4,10,6],[10,7,10,8],[16,1,16,3],[12,1,12,3],[13,1,13,3],[12,7,12,8],[11,4,11,6],[11,7,11,8],[15,1,15,3],[14,1,14,3],[12,4,12,6],[28,3,28,4],[28,6,28,7],[39,2,39,4],[40,2,40,4],[26,1,26,2],[39,6,39,11],[45,22,45,23],[37,16,37,17],[13,21,13,22],[14,21,14,22],[19,1,19,8],[14,15,14,17],[43,16,43,21],[43,22,43,23],[44,2,44,4],[44,6,44,11],[44,16,44,21],[2,1,2,4],[2,15,2,17],[2,19,2,22],[3,1,4,8],[3,15,4,22],[7,1,7,6],[7,7,7,8],[7,15,7,20],[7,21,7,22],[5,1,5,8],[6,1,6,8],[9,1,9,3],[9,4,9,6],[16,4,16,8],[16,18,16,22],[16,15,16,17],[23,3,23,4],[12,19,12,20],[11,21,11,22],[13,4,13,8],[14,4,14,8],[15,4,15,8],[15,18,15,22],[11,15,11,18],[23,1,23,2],[10,1,10,3],[11,1,11,3],[14,18,14,20],[15,15,15,17],[22,1,22,2],[12,21,12,22],[10,19,10,22],[9,7,9,8],[9,15,9,18],[9,19,9,22],[38,15,38,19],[41,6,41,11],[41,16,41,21],[40,22,40,23],[41,24,41,25],[42,24,42,25],[43,24,43,25],[44,24,44,25],[8,21,8,22],[8,15,8,20],[8,1,8,6],[8,7,8,8],[26,3,26,4],[38,1,38,5],[25,3,25,4],[28,1,28,2],[31,1,31,10],[37,1,37,5],[44,22,44,23],[19,15,19,22],[25,1,25,2],[32,1,32,10],[34,1,34,10],[35,1,35,10],[55,2,55,4],[54,16,54,21],[40,16,40,21],[39,16,39,21],[39,24,39,25],[40,24,40,25],[50,2,50,4],[51,6,51,11],[54,6,54,11],[50,24,50,25],[51,24,51,25],[52,24,52,25],[54,24,54,25],[40,6,40,11],[50,6,50,11],[52,22,52,23],[50,16,50,21],[48,2,48,4],[48,6,48,11],[48,16,48,21],[41,2,41,4],[45,24,45,25],[46,2,46,4],[46,6,46,11],[55,16,55,21],[55,22,55,23],[57,22,57,23],[57,16,57,21],[53,22,53,23],[64,20,64,22],[59,16,59,21],[93,1,93,2],[82,1,82,2],[72,1,72,3],[74,1,74,9],[76,1,76,3],[68,1,68,3],[69,1,69,8],[78,10,80,10],[81,1,81,2],[59,22,59,23],[89,12,89,13],[82,12,82,13],[55,6,55,11],[54,22,54,23],[59,2,59,4],[56,6,56,11],[57,6,57,11],[83,1,83,2],[89,1,89,2],[84,1,84,2],[121,15,121,16],[121,17,121,18],[122,1,124,13],[90,1,90,2],[97,1,97,2],[88,1,88,2],[86,1,86,2],[99,16,99,23],[100,16,100,23],[101,16,101,23],[102,16,102,23],[87,3,87,9],[88,3,88,9],[85,12,85,13],[94,1,94,2],[87,12,87,13],[86,12,86,13],[90,12,90,13],[88,12,88,13],[89,3,89,9],[90,3,90,9],[80,1,80,2],[79,1,79,5],[67,1,67,9],[72,4,72,8],[100,1,100,2],[99,1,99,2],[93,12,93,13],[99,12,99,13],[95,1,95,2],[87,1,87,2],[85,1,85,2],[91,1,91,2],[91,12,91,13],[98,1,98,2],[98,12,98,13],[95,12,95,13],[96,1,96,2],[96,12,96,13],[92,1,92,2],[81,3,81,9],[82,3,82,9],[83,3,83,9],[84,3,84,9],[86,3,86,9],[186,1,186,8],[101,1,101,2],[106,1,106,2],[102,1,102,2],[159,1,159,8],[181,1,181,8],[143,1,143,8],[144,1,144,8],[161,1,161,8],[162,1,162,8],[156,1,156,8],[155,1,155,8],[148,1,148,8],[149,1,149,8],[150,1,150,8],[153,1,153,8],[165,1,165,8],[166,1,175,8],[178,1,178,8],[116,1,116,3],[179,1,179,8],[180,1,180,8],[154,1,154,8],[147,1,147,8],[101,3,101,9],[102,3,102,9],[103,3,103,9],[85,3,85,9],[95,3,95,9],[91,3,91,9],[92,3,92,9],[93,3,93,9],[94,3,94,9],[96,3,96,9],[97,3,97,9],[98,3,98,9],[99,3,99,9],[100,3,100,9]]}
[]
[null,null,null,null,null,null,null,null,null,null,null,null,null,null,{"$f":"\"Avrop nr: \"&E15","v":"Avrop nr: "},null,null,null,null,null,null,null,{"$f":"\"Avrop nr: \"&E15","v":"Avrop nr: "}]
[null,"Avropsförfrågan",null,null,null,null,null,null,null,null,null,null,null,null,null,"Avropssvar",null,null,null,{"$f":"IF(LarmStatus,\"Minst ett av de obligatoriska kraven är inte ifyllda eller besvarade med Nej\",\"\")","v":"Minst ett av de obligatoriska kraven är inte ifyllda eller besvarade med Nej"},null,null,null,null,null,null,null,null,null,null,null,null,null,{"$f":"OR(AH4:AH840)","v":true}]
[null,"Instruktion till avropande organisation: \nSpara ned blanketten på din dator.\nGulmarkerade rutor fylls i av avropare innan blanketten skickas.\n\nBlanketten skickas med e-post till antagna leverantörer inom aktuellt avropsområde.\nSe vidare \"Vägledning vid avrop\".",null,null,null,null,null,null,null,null,null,null,null,null,null,"Instruktion till leverantör:\nBlåmarkerade rutor fylls i av leverantören.\nLäs och kontrollera obligatoriska krav.\nReturnera blanketten med e-post till avropande organisation (oavsett Ja eller Nej)."]
[]
[null,"Steg 1 - Administrativa uppgifter"]
[null,"Uppgifter om avropande organisation",null,null,null,null,null,null,null,null,null,null,null,null,null,"Uppgifter om Ramavtalsleverantören"]
[null,"Myndighet/Organisation (namn)",null,null,null,null,null,"Organisationsnummer",null,null,null,null,null,null,null,"Ramavtalsleverantörens namn",null,null,null,null,null,"Organisationsnummer"]
[]
[null,"Postadress",null,null,"Postnummer",null,null,"Ort",null,null,null,null,null,null,null,"Kontaktperson",null,null,null,"E-post"]
[]
[null,"Avdelning, enhet etc",null,null,"Fakturaref.",null,null,"Mottagare för E-faktura",null,null,null,null,null,null,null,"Postadress",null,null,null,"Postnummer",null,"Ort"]
[]
[null,"Kontaktperson",null,null,"Referens/diarienr för avropet",null,null,null,null,null,null,null,null,null,null,"Telefon",null,null,"Ramavtalsnummer",null,null,"Offertnummer el likn för detta avropssvar"]
[]
[null,"Telefon",null,null,"E-post",null,null,null,null,null,null,null,null,null,null,"Avropssvar lämnas Ja/Nej",null,null,"Om Nej, motivering"]
[null,null,null,null,"     ",null,null,null,null,null,null,null,null,null,null,null,null,null,null,null,null,null,null,null,null,null,null,null,null,null,null,null,null,{"$f":"IF(AND(P17=0,P17<>\"Ja\"),TRUE,FALSE)","v":true}]
[]
[null,"Information om avropet t ex syfte och omfattning",null,null,null,null,null,null,null,null,null,null,null,null,null,"Uppgifter om underleverantör/återförsäljare (om aktuellt)"]
[]
[]
[null,null,"Obs att tidsfristen måste vara skälig med hänsyn till avropets karaktär."]
[null,"Sista datum för frågor",null,"Sista datum för \nsvar på frågor",null,null,"E-post för frågor (om annan än ovan)"]
[]
[]
[null,"Sista dag för avropssvar",null,"Avropssvarets giltighetstid"]
[]
[]
[null,"Kontraktets längd: antal timmar",null,"Förlängningsoption:\nAntal timmar",null,null,"Planerat startdatum för kontraktet"]
[]
[]
[null,"Ange Kompetensområde"]
[null,"Ange kompetensområde"]
[]
[null,"Ange vilket region avropet avser "]
[null,"Välj region"]
[]
[null,"Steg 2 - Specifikation av tjänster",null,null,null,null,null,null,null,null,null,null,null,null,null,null,"Leverantörens svar"]
[null,null,null,null,null,null,null,null,""]
[null,"Tjänst nr","Välj i lista\nOBS! Varje tjänst kan väljas flera gånger.",null,null,"Kompetensnivå","Specificera tjänster i fritext eller hänvisa till bilaga. \nAnge bilagans nummer! \nSpecificera uppdragets omfattning och start och slutdatum",null,null,null,null,null,"Specifikation i bilaga?","Fast pris för hela uppdraget/Timpris ","Omfattning i antal timmar. ",null,"Vid behov specificera tjänster, annan information eller hänvisa till bilaga.",null,null,null,null,null,"Pris\nexkl moms avrundat till heltal.",null,"Pris totalt"]
[null,"01.",null,null,null,null,null,null,null,null,null,null,false,null,null,null,null,null,null,null,null,null,null,null,{"$f":"IF(N41=\"Timpris\",O41*W41,W41)","v":0}]
[null,"02.",null,null,null,null,null,null,null,null,null,null,false,null,null,null,null,null,null,null,null,null,null,null,0]
[null,"03.",null,null,null,null,null,null,null,null,null,null,false,null,null,null,null,null,null,null,null,null,null,null,0]
[null,"04.",null,null,null,null,null,null,null,null,null,null,false,null,null,null,null,null,null,null,null,null,null,null,0]
[null,"05.",null,null,null,null,null,null,null,null,null,null,false,null,null,null,null,null,null,null,null,null,null,null,0]
[null,"06.",null,null,null,null,null,null,null,null,null,null,false,null,null,null,null,null,null,null,null,null,null,null,0]
[null,"07.",null,null,null,null,null,null,null,null,null,null,false,null,null,null,null,null,null,null,null,null,null,null,0]
[null,"08.",null,null,null,null,null,null,null,null,null,null,false,null,null,null,null,null,null,null,null,null,null,null,0]
[null,"09.",null,null,null,null,null,null,null,null,null,null,false,null,null,null,null,null,null,null,null,null,null,null,0]
[null,"10.",null,null,null,null,null,null,null,null,null,null,false,null,null,null,null,null,null,null,null,null,null,null,0]
[null,"11.",null,null,null,null,null,null,null,null,null,null,false,null,null,null,null,null,null,null,null,null,null,null,0]
[null,"12.",null,null,null,null,null,null,null,null,null,null,false,null,null,null,null,null,null,null,null,null,null,null,0]
[null,"13.",null,null,null,null,null,null,null,null,null,null,false,null,null,null,null,null,null,null,null,null,null,null,0]
[null,"14.",null,null,null,null,null,null,null,null,null,null,false,null,null,null,null,null,null,null,null,null,null,null,0]
[null,"15.",null,null,null,null,null,null,null,null,null,null,false,null,null,null,null,null,null,null,null,null,null,null,0]
[null,"16.",null,null,null,null,null,null,null,null,null,null,false,null,null,null,null,null,null,null,null,null,null,null,0]
[null,"17.",null,null,null,null,null,null,null,null,null,null,false,null,null,null,null,null,null,null,null,null,null,null,0]
[null,"18.",null,null,null,null,null,null,null,null,null,null,false,null,null,null,null,null,null,null,null,null,null,null,0]
[null,"19.",null,null,null,null,null,null,null,null,null,null,false,null,null,null,null,null,null,null,null,null,null,null,0]
[null,"20.",null,null,null,null,null,null,null,null,null,null,false,null,null,null,null,null,null,null,null,null,null,null,0]
[]
[null,null,null,null,null,null,null,null,null,null,null,null,null,null,null,null,null,null,null,null,null,null,null,"Totalt pris (utvärderas): ",{"$f":"SUM(Y41:Z60)","v":0}]
[]
[null,null,null,null,null,null,null,null,null,null,null,null,null,null,null,null,null,null,null,null,null,null,"OBS! Ej detsamma som kontraktssumma"]
[]
[null,"Steg 3 - Grund för tilldelning av kontrakt"]
[]
[null,"Ange tilldelningsgrund som kommer att tillämpas för att utse vinnande avropssvar.\nObs! Om kravspecifikationen innehåller bör-krav väljer Ni alternativ 2 nedan.",null,null,null,null,null,null,null,null,null,"Instruktion:\nInnan kravspecifikationen fylls i måste du ange tilldelningsgrund, dvs. om tilldelning ska ske genom lägsta pris (endast ska-krav) eller med bör-krav som viktas mot priset i utvärderingen. Kravspecifikationen nedan kommer att anpassas efter ditt val."]
[]
[null,"Tilldelning av kontrakt sker utifrån:"]
[null,"Alt. 2. Ekonomiskt mest fördelaktiga (priset i relation till bör-krav)"]
[1]
[1,"Utvärderingsmodell",null,null,null,null,null,null,null,null,null,"Instruktion:\nObservera att de två föreslagna alternativen endast är exempel på vanligt förekommande utvärderings-modeller. Det är alltid den avropande organisationen som avgör om man vill använda sig av dem. "]
[1]
[1,"Ange den utvärderingsmodell som kommer att tillämpas för att utse vinnande avropssvar. \n"]
[1]
[1,"Utvärdering av :"]
[1,"Välj utvärdering….."]
[]
[null,"Steg 4 - Kravspecifikation",null,null,null,null,null,null,null,null,null,null,null,null,null,"Kravuppfyllnad"]
[]
[null,"Välj tjänst (endast de som valts i steg 2 ovan är möjliga)\nOBS! Varje tjänst kan väljas flera gånger.",null,"Precisera krav i fritext eller hänvisa till bilaga\n\n",null,null,null,null,null,null,{"$f":"IF(ISNUMBER(SEARCH(\"1\",B71)),\"Endast ska-krav\",\"Välj typ av krav\n(ska/bör)\")","v":"Välj typ av krav\n(ska/bör)"},{"$f":"IF(TillDelVal=1,\"\",\"Ange poäng-värde\n(vid bör-krav)\")","v":"Ange poäng-värde\n(vid bör-krav)"},{"$f":"IF(TillDelVal=1,\"\",\"Ange prisavdrag från totalpriset (kr)\n(vid bör-krav)\")","v":"Ange prisavdrag från totalpriset (kr)\n(vid bör-krav)"},null,null,"Uppfyller kravet?","Beskrivning av hur leverantören uppfyller kravet eller referera till bilaga"]
[null,"Välj roll",null,null,null,null,null,null,null,null,"Välj typ av krav",null,null,null,null,null,null,null,null,null,null,null,null,null,null,null,null,null,{"$f":"IF(AND(K83=\"Bör-krav\",L83<=0),TRUE,FALSE)","v":false},{"$f":"IF(K83=\"Ska-krav\",TRUE,FALSE)","v":false},null,null,null,null,null,{"$f":"IF(AND(K83=\"Ska-krav\",P83<>\"Ja\"),TRUE,FALSE)","v":false}]
[null,"Välj roll",null,null,null,null,null,null,null,null,"Välj typ av krav",null,null,null,null,null,null,null,null,null,null,null,null,null,null,null,null,null,false,false,null,null,null,null,null,false]
[null,"Välj roll",null,null,null,null,null,null,null,null,"Välj typ av krav",null,null,null,null,null,null,null,null,null,null,null,null,null,null,null,null,null,false,false,null,null,null,null,null,false]
[null,"Välj roll",null,null,null,null,null,null,null,null,"Välj typ av krav",null,null,null,null,null,null,null,null,null,null,null,null,null,null,null,null,null,false,false,null,null,null,null,null,false]
[null,"Välj roll",null,null,null,null,null,null,null,null,"Välj typ av krav",null,null,null,null,null,null,null,null,null,null,null,null,null,null,null,null,null,false,false,null,null,null,null,null,false]
[null,"Välj roll",null,null,null,null,null,null,null,null,"Välj typ av krav",null,null,null,null,null,null,null,null,null,null,null,null,null,null,null,null,null,false,false,null,null,null,null,null,false]
[null,"Välj roll",null,null,null,null,null,null,null,null,"Välj typ av krav",null,null,null,null,null,null,null,null,null,null,null,null,null,null,null,null,null,false,false,null,null,null,null,null,false]
[null,"Välj roll",null,null,null,null,null,null,null,null,"Välj typ av krav",null,null,null,null,null,null,null,null,null,null,null,null,null,null,null,null,null,false,false,null,null,null,null,null,false]
[null,"Välj roll",null,null,null,null,null,null,null,null,"Välj typ av krav",null,null,null,null,null,null,null,null,null,null,null,null,null,null,null,null,null,false,false,null,null,null,null,null,false]
[null,"Välj roll",null,null,null,null,null,null,null,null,"Välj typ av krav",null,null,null,null,null,null,null,null,null,null,null,null,null,null,null,null,null,false,false,null,null,null,null,null,false]
[null,"Välj roll",null,null,null,null,null,null,null,null,"Välj typ av krav",null,null,null,null,null,null,null,null,null,null,null,null,null,null,null,null,null,false,false,null,null,null,null,null,false]
[null,"Välj roll",null,null,null,null,null,null,null,null,"Välj typ av krav",null,null,null,null,null,null,null,null,null,null,null,null,null,null,null,null,null,false,false,null,null,null,null,null,false]
[null,"Välj roll",null,null,null,null,null,null,null,null,"Välj typ av krav",null,null,null,null,null,null,null,null,null,null,null,null,null,null,null,null,null,false,false,null,null,null,null,null,false]
[null,"Välj roll",null,null,null,null,null,null,null,null,"Välj typ av krav",null,null,null,null,null,null,null,null,null,null,null,null,null,null,null,null,null,false,false,null,null,null,null,null,false]
[null,"Välj roll",null,null,null,null,null,null,null,null,"Välj typ av krav",null,null,null,null,null,null,null,null,null,null,null,null,null,null,null,null,null,false,false,null,null,null,null,null,false]
[null,"Välj roll",null,null,null,null,null,null,null,null,"Välj typ av krav",null,null,null,null,null,null,null,null,null,null,null,null,null,null,null,null,null,false,false,null,null,null,null,null,false]
[null,"Välj roll",null,null,null,null,null,null,null,null,"Välj typ av krav",null,null,null,null,null,null,null,null,null,null,null,null,null,null,null,null,null,false,false,null,null,null,null,null,false]
[null,"Välj roll",null,null,null,null,null,null,null,null,"Välj typ av krav",null,null,null,null,null,null,null,null,null,null,null,null,null,null,null,null,null,false,false,null,null,null,null,null,false]
[null,"Välj roll",null,null,null,null,null,null,null,null,"Välj typ av krav",null,null,null,null,null,null,null,null,null,null,null,null,null,null,null,null,null,false,false,null,null,null,null,null,false]
[null,"Välj roll",null,null,null,null,null,null,null,null,"Välj typ av krav",null,null,null,null,null,null,null,null,null,null,null,null,null,null,null,null,null,false,false,null,null,null,null,null,false]
[null,"Välj roll",null,null,null,null,null,null,null,null,"Välj typ av krav",null,null,null,null,null,null,null,null,null,null,null,null,null,null,null,null,null,false,false,null,null,null,null,null,false]
[null,"Välj roll",null,null,null,null,null,null,null,null,"Välj typ av krav",null,null,null,null,null,null,null,null,null,null,null,null,null,null,null,null,null,false,false,null,null,null,null,null,false]
[1]
[1,null,null,null,null,null,null,null,null,null,null,"Max poäng för uppfyllda bör-krav",{"$f":"IF(UtvarderingsVal=\"Ut3\",\"\",\"Max prisavdrag för uppfyllda bör-krav\")","v":"Max prisavdrag för uppfyllda bör-krav"}]
[1,null,null,null,null,null,null,null,null,null,null,{"$f":"SUM(L83:L104)","v":0},{"$f":"SUM(M83:M104)","v":0},null,null,"Total erhållen poängsumma: ",{"$f":"SUMIF(P83:P104,\"Ja\",L83:L104)","v":0},null,null,null,"Totalt erhållet prisavdrag:",null,null,{"$f":"SUMIF(P83:P104,\"Ja\",M83:M104)","v":0}]
[]
[]
[]
["Ut1","Alt. 1. Summan av viktade poäng för pris och uppfyllda bör-krav, högsta slutsumma vinner.",null,null,null,null,null,null,null,null,null,null,null,null,null,"Sammanställning för detta avropssvar",null,"Fyll i det gula fältet efter att samtliga avropssvar inkommit!","När det gula fältet är ifyllt sker en automatisk poängberäkning. Lägst pris divideras med det aktuella avropssvarets pris, multipliceras med 100 och därefter med angiven viktning. \nPoängsumman för uppfyllda bör-krav divideras med max poäng för uppfyllda bör-krav, multipliceras med 100 och därefter med angiven viktning. \nEn slutlig poängsumma för detta avropssvar kommer att framgå av fältet längst till höger. Denna slutliga poängsumma ligger till grund för tilldelningsbeslutet."]
["Ut1","Priset jämförs mellan avropssvaren. Poäng för uppfyllda bör-krav jämförs med möjlig maxpoäng. "]
["Ut1","Tilldelningskriterier"]
["Ut1","Ange kriterievikt för pris respektive bör-krav i tabellen nedan",null,null,null,null,null,null,null,"Viktning %",null,null,null,null,null,null,"Viktning","Lägsta inkomna totalpris","Erhållen poäng för totalpris",null,"Viktade poäng per kriterium",null,"Slutlig poängsumma för detta avropssvar\n(utvärderas)"]
["Ut1","Pris",null,null,null,null,null,null,"Utvärdering av det totala sammanräknade priset: ",1,null,null,null,null,null,"Totalpris"]
["Ut1","Utvärderingskrav \n(bör-krav)",null,null,null,null,null,null,"Utvärdering av ställda bör-krav på avropade tjänster: ",0,null,null,null,null,null,{"$f":"Y62","v":0},{"$f":"J115","v":1},null,{"$f":"IFERROR(R116/P116*100,0)","v":0},null,{"$f":"IFERROR(S116*Q116,\"\")","v":0},null,{"$f":"IFERROR(SUM(U116+U118),\"\")","v":""}]
["Ut1","Summa kriterievikt:",null,null,null,null,null,null,"(ska alltid summera till 100 %)",{"$f":"J116+J115","v":1},null,null,null,null,null,"Poängsumma för uppfyllda bör-krav"]
["Ut1",null,null,null,null,null,null,null,null,null,null,null,null,null,null,{"$f":"Q107","v":0},{"$f":"J116","v":0},null,null,null,{"$f":"IFERROR(((P118/L107)*100)*Q118,\"\")","v":""}]
["Ut1"]
["Ut1"]
[]
["Ut2","Alt. 2. Prisavdrag för uppfyllda bör-krav, lägsta utvärderingskostnad vinner. ",null,null,null,null,null,null,null,null,null,null,null,null,null,"Prisavdrag för uppfyllda bör-krav. ",null,"Summa utvärderingskostnad för detta avropssvar"]
["Ut2","Det erhållna prisavdraget för uppfyllda utvärderingskrav (bör-krav) dras ifrån det totala priset för avropade tjänster. Resultatet blir en utvärderingskostnad som ligger till grund för tilldelningsbeslutet.",null,null,null,null,null,null,null,null,null,null,null,null,null,{"$f":"X107","v":0},null,{"$f":"Y62-P123","v":0}]
["Ut2",null,null,null,null,null,null,null,null,null,null,null,null,null,null,null,null,"OBS! Ej detsamma som kontraktssumma"]
["Ut2"]
["Ut2"]
[]
["Ut3","Alt. 3. Annan utvärderingsmodell (än de ovan föreslagna)"]
["Ut3"]
["Ut3","Avropande organisations beskrivning av den utvärderingsmodell som kommer att tillämpas (eller hänvisning till bilaga)"]
["Ut3"]
["Ut3"]
["Ut3"]
["Ut3"]
["Ut3"]
["Ut3"]
["Ut3"]
[]
[]
[null,"Steg 5 - Övriga uppgifter"]
[null,"Leveranstid"]
[null,"Ange ev leveranstid/er för tjänsterna"]
[]
[]
[]
[]
[null,"Leveransvillkor (framgår av ramavtalets allmänna villkor)"]
[null,"Ev. precisering av leveransvillkor"]
[]
[]
[]
[]
[null,"Adress (om annan än ovan)"]
[null,"Ange ev adress för uppdraget/uppdragen"]
[]
[]
[]
[]
[null,"Fakturaadress (om annan än ovan)"]
[null,"Ange ev fakturaadress/erna"]
[]
[]
[]
[]
[null,"Övrig information"]
[null,"Ange övriga specifika förutsättningar (tex ev budgetrestriktioner), förhållanden eller önskemål som kan vara viktiga för leverantören och som inte framgår på annan plats i dokumentet.",null,null,null,null,null,null,null,null,null,null,null,null,null,"Bilagor från leverantören"]
[null,null,null,null,null,null,null,null,null,null,null,null,null,null,null,"Specificera ev. bilagor som medföljer detta avropssvar"]
[]
[]
[]
[]
[]
[null,null,null,null,null,null,null,null,null,null,null,null,null,null,null,"Leverantören har lämnat begärda prisuppgifter som gäller för offererade tjänster enligt ställda krav samt accepterar i övrigt kraven i avropsförfrågan och är införstådd med att samtliga lämnade uppgifter i avropssvaret är bindande\n"]
[]
[null,null,null,null,null,null,null,null,null,null,null,null,null,null,null,{"$f":"\"Leverantören intygar att avropssvaret är giltigt minst den tid som avropande organisation angett ovan. \"&CHAR(10)&\"(\"&TEXT(D27,\"ÅÅÅÅ-MM-DD\")&\")\"","v":"Leverantören intygar att avropssvaret är giltigt minst den tid som avropande organisation angett ovan. \n(1900-01-00)"}]
[null,null,null,null,null,null,null,null,null,null,null,null,null,null,null,"Ort, datum"]
[]
[null,"Bilagor från avropande organisation (kontraktshandlingar framgår av flik 3)"]
[null,"Specificera ev. bilagor som medföljer denna avropsförfrågan",null,null,null,null,null,null,null,null,null,null,null,null,null,"Namn, befattning (behörig företrädare för leverantören)"]
[]
[]
[null,null,null,null,null,null,null,null,null,null,null,null,null,null,null,null,null,null,{"$f":"IF(LarmStatus,\"Minst ett av de obligatoriska kraven är inte ifyllda eller besvarde med Nej\",\"\")","v":"Minst ett av de obligatoriska kraven är inte ifyllda eller besvarde med Nej"}]
[]
[]
[]
[]
[null,"OBS! Spara inte blanketten i PDF-format. Då kan inte leverantörerna fylla i den. Lås blanketten med \"låsknappen\" nedan innan ni skickar blanketten till leverantörerna."]
[]
[null,null,null,null,null,null,null,null,null,null,null,null,null,null,null,null,null,null,null,null,null,null,null,null,null,null,null,null,null,null,null,null,null,{"$f":"IF(P177=0,TRUE,FALSE)","v":true}]
[]
[]
[]
[null,null,null,null,null,null,null,null,null,null,null,null,null,null,null,null,null,null,null,null,null,null,null,null,null,null,null,null,null,null,null,null,null,{"$f":"IF(P180=0,TRUE,FALSE)","v":true}]

{"sheet":"3 Avtalstecknande","index":2,"n_rows":37,"n_cols":4,"rows_kept":37,"cut":false,"hidden":false,"merged":[[41,1,41,3],[22,1,22,3],[37,1,37,3],[17,1,17,3],[18,1,19,3],[5,1,5,3],[38,1,38,3],[39,1,39,3],[40,1,40,3],[7,1,7,3],[9,1,9,3],[11,1,11,3],[14,1,14,3],[15,1,15,3]]}
[null,null,null,{"$f":"\"Avrop nr: \"&'2 Specifikation'!E15","v":"Avrop nr: "}]
[]
[]
[]
[null,"Kontrakt"]
[null,{"$f":"\"Detta kontrakt reglerar avrop från ramavtalsområde \"&'1 Försättssida'!A14&\", \"&'1 Försättssida'!A16","v":"Detta kontrakt reglerar avrop från ramavtalsområde IT konsulttjänster, 96-76-2012 "}]
[null,"Kontraktets omfattning"]
[null,"Leveransens omfattning och villkor framgår av Kontraktet med tillhörande bilagor samt Ramavtalet. Om handlingarna innehåller motstridiga uppgifter ska handlingarna gälla i nedan nämnd ordning om inte omständigheterna uppenbarligen föranleder annat."]
[null,"1. Skriftliga ändringar och tillägg till Kontrakt"]
[null,"2. Kontrakt med bilagor, inkl. Allmänna villkor"]
[null,"3. Eventuellt kompletterande Avropsförfrågan"]
[null,"4. Avropsförfrågan med bilagor "]
[null,"5. Eventuella tillåtna kompletteringar av Avropssvar"]
[null,"6. Avropssvar med bilagor"]
[]
[null,"Innehåller leverantörens avropssvar uppgifter som inte efterfrågats i avropsblanketten är dessa uppgifter giltiga endast om en skriftlig överenskommelse träffas särskilt angående detta. Hänvisning till leverantörens egna allmänna villkor eller motsvarande är endast giltiga om en särskild överenskommelse avseende detta tecknas."]
[]
[null,"Särskilda kontraktsvillkor, säkerhetsskyddsavtal etc. (alternativt enl separat bilaga) Se Allmänna villkor för tillåtna kompletteringar! "]
[]
[]
[]
[null,"Underskrift"]
[null,"Underskriften avser ett kontraktstecknande. Efter undertecknande av bägge parter utgör denna blankett tillsammans med ramavtalets villkor enligt ovan ett kontrakt mellan parterna.\n\nDetta kontrakt har upprättats i två exemplar varav parterna tagit var sitt."]
[]
[null,"Avropande organisation",null,"Leverantör"]
[null,{"$f":"'2 Specifikation'!B9","v":0},null,{"$f":"'2 Specifikation'!P9","v":0}]
[null,"Org.nr.",null,"Org.nr."]
[null,{"$f":"'2 Specifikation'!H9","v":0},null,{"$f":"'2 Specifikation'!V9","v":0}]
[]
[null,"Ort, datum",null,"Ort, datum"]
[]
[]
[null,"Namn, befattning \n(behörig företrädare för avropande organisation)",null,"Namn, befattning \n(behörig företrädare för leverantören)"]
[]
[]
[]
[null,"Eventuella bilagor till kontraktet"]

{"sheet":"Admin","index":3,"n_rows":113,"n_cols":17,"rows_kept":113,"cut":false,"hidden":true,"merged":[]}
[null,null,null,null,null,null,null,null,null,"ResVarTja"]
[null,null,null,{"$f":"C5","v":"Användbarhet"},{"$f":"C6","v":"Verksamhetsutveckling & krav"},{"$f":"C7","v":"IT-arkitekt"},{"$f":"C8","v":"Systemutveckling & systemförvaltning"},{"$f":"C9","v":"Test & testledning"},{"$f":"C10","v":"Ledning & styrning"},{"$f":"USRDelområde","v":"Ange kompetensområde"}]
[null,null,"TblDelområde","Välj region",{"$f":"$D$3","v":"Välj region"},"Välj region","Välj region","Välj region","Välj region","Välj region"]
[null,null,"Ange kompetensområde","Norra regionen och Uppsala-Örebro",{"$f":"D4","v":"Norra regionen och Uppsala-Örebro"},{"$f":"E4","v":"Norra regionen och Uppsala-Örebro"},"Norra regionen och Uppsala-Örebro","Norra regionen och Uppsala-Örebro","Norra regionen och Uppsala-Örebro",{"$f":"IF($J$2=$C$4,\"\",D4)","v":""}]
[null,null,"Användbarhet","Region Stockholm och Gotland",{"$f":"D5","v":"Region Stockholm och Gotland"},{"$f":"E5","v":"Region Stockholm och Gotland"},"Region Stockholm och Gotland","Region Stockholm och Gotland","Region Stockholm och Gotland",{"$f":"IF($J$2=$C$4,\"\",D5)","v":""}]
[null,null,"Verksamhetsutveckling & krav","Region Sydöstra",{"$f":"D6","v":"Region Sydöstra"},{"$f":"E6","v":"Region Sydöstra"},"Region Sydöstra","Region Sydöstra","Region Sydöstra",{"$f":"IF($J$2=$C$4,\"\",D6)","v":""}]
[null,null,"IT-arkitekt","Region Södra",{"$f":"D7","v":"Region Södra"},{"$f":"E7","v":"Region Södra"},"Region Södra","Region Södra","Region Södra",{"$f":"IF($J$2=$C$4,\"\",D7)","v":""}]
[null,null,"Systemutveckling & systemförvaltning","Region Västra",{"$f":"D8","v":"Region Västra"},{"$f":"E8","v":"Region Västra"},"Region Västra","Region Västra","Region Västra",{"$f":"IF($J$2=$C$4,\"\",D8)","v":""}]
[null,null,"Test & testledning",null,null,null,null,null,null,{"$f":"IF($J$2=$C$4,\"\",D10)","v":""}]
[null,null,"Ledning & styrning",null,null,null,null,null,null,""]
[null,null,"IT-säkerhet",null,null,null,null,null,null,""]
[null,null,null,null,null,null,null,null,null,""]
[null,null,null,null,null,null,null,null,null,""]
[null,null,null,null,null,null,null,null,null,""]
[null,null,null,null,null,null,null,null,null,""]
[null,null,null,null,null,null,null,null,null,""]
[null,null,null,null,null,null,null,null,null,""]
[null,null,null,null,null,null,null,null,null,""]
[null,null,null,null,null,null,null,null,null,""]
[null,null,null,null,null,null,null,null,null,""]
[null,null,null,null,null,null,null,null,null,""]
[null,null,null,null,null,null,null,null,null,""]
[null,null,null,null,null,null,null,null,null,""]
[null,null,null,null,null,null,null,null,null,""]
[]
[]
[null,null,"Användbarhet","Verksamhetsutveckling & Krav","IT-Arkitekt","Systemutveckling & Systemförvaltning","Test & Testledning","Ledning & Styrning","IT-säkerhet","ResOpt"]
[null,null,"Välj exempelroll",{"$f":"C28","v":"Välj exempelroll"},{"$f":"D28","v":"Välj exempelroll"},"Välj exempelroll","Välj exempelroll","Välj exempelroll","Välj exempelroll",{"$f":"IFERROR(IF(INDEX(C28:I28,MATCH(J$2,C$27:I$27,0))=0,\"\",INDEX(C28:I28,MATCH(J$2,C$27:I$27,0))),\"\")","v":""}]
[null,null,"Användbarhetsarkitekt","Kravhantering och Kravanalys","Infrastrukturarkitekt","Databasdesigner- och administratör","Prestandatestare","Förvaltningsledare","IT-säkerhetsstrateg/IT-säkerhetsanalytiker",{"$f":"IFERROR(IF(INDEX(C29:I29,MATCH(J$2,C$27:I$27,0))=0,\"\",INDEX(C29:I29,MATCH(J$2,C$27:I$27,0))),\"\")","v":""}]
[null,null,"Grafisk formgivare","Metodstöd","Lösningsarkitekt","Konfigurations- och Versionshantering","Testare","IT-controller","IT-säkerhetstekniker",""]
[null,null,"Teknisk skribent","Modelleringsledare","Mjukvaruarkitekt","Systemintegratör","Testautomatiserare","Projektledare","Egendefinerad roll enl. beskrivning",""]
[null,null,"Testare av användbarhet och användargränssnitt","Verksamhetsanalytiker","Egendefinerad roll enl. beskrivning","Systemutveckling","Testledare","Teknisk projektledare",null,""]
[null,null,"Tillgänglighetsspecialist","Egendefinerad roll enl. beskrivning",null,"Egendefinerad roll enl. beskrivning","Egendefinerad roll enl. beskrivning","Tjänsteansvarig",null,""]
[null,null,"Egendefinerad roll enl. beskrivning",null,null,null,null,"Egendefinerad roll enl. beskrivning",null,""]
[]
[]
[]
[]
[]
[null,null,null,null,null,null,null,null,null,"ResNiva"]
[null,null,null,null,null,null,null,null,null,"Nivå 2"]
[null,null,null,null,null,null,null,null,null,"Nivå 3"]
[null,null,null,null,null,null,null,null,null,"Nivå 4"]
[null,null,null,null,null,null,null,null,null,"Nivå 5"]
[]
[null,null,null,null,null,null,null,null,null,"Region"]
[null,null,null,"TblGrundTilldeln",null,"Tbl krav",null,"TblEnhet",null,"Multiregionalt"]
[null,null,null,"Välj grund för tilldelning…..",null,"Välj krav",null,"Timmar",null,"Blekinge län"]
[null,null,null,"Alt. 1. Lägsta pris (endast ska-krav och pris)",null,"Krav 1",null,"Bilaga",null,"Dalarnas län"]
[null,null,null,"Alt. 2. Ekonomiskt mest fördelaktiga (priset i relation till bör-krav)",null,"Krav 2",null,null,null,"Gotlands län"]
[null,null,null,null,null,"Krav 3",null,null,null,"Gävleborgs län"]
[null,null,null,"TblUtVrd",null,"Krav 4",null,null,null,"Hallands län"]
[null,null,null,"Välj utvärdering…..",null,"Krav 5",null,null,null,"Jämtlands län"]
[null,null,null,"Alt. 1. Relativ viktning - summan av viktade poäng för pris och uppfyllda bör-krav",null,"Krav 6",null,null,null,"Jönköpings län"]
[null,null,null,"Alt. 2. Mervärdesmodell - prisavdrag för uppfyllda bör-krav",null,"Se bilaga",null,null,null,"Kalmars län"]
[null,null,null,"Alt. 3. Annan utvärderingsmodell",null,null,null,null,null,"Kronobergs län"]
[null,null,null,null,null,null,null,null,null,"Norrbottens län"]
[null,null,null,null,null,null,null,null,null,"Skånes län"]
[null,null,null,null,null,null,null,null,null,"Stockholms län"]
[null,null,null,null,null,null,null,null,null,"Södermanlands län"]
[null,null,null,null,null,null,null,null,null,"Uppsala län"]
[null,null,null,null,null,null,null,null,null,"Värmlands län"]
[null,null,null,null,null,null,null,null,null,"Västerbottens län"]
[null,null,null,null,null,null,null,null,null,"Västernorrlands län"]
[null,null,null,null,null,null,null,null,null,"Västmanlands län"]
[null,null,null,null,null,null,null,null,null,"Västra Götalands län"]
[null,null,null,null,null,null,null,null,null,"Örebro län"]
[null,null,null,null,null,null,null,null,null,"Östergötlands lön"]
[]
[null,null,"TblLeverantörer"]
[null,null,"Juridiskt Namn","Förvaltningens avtalsnummer ","Organisations-nummer","Adress","Postnummer","Postadress","Telefon Växel","Telefon kundtjänst","Hemsida","Kontaktperson ","Telefon","E-post kontaktperson","Befattning Kontaktperson","Fax","E-post Gruppbrevlåda"]
[]
[null,null,{"$f":"\"Välj \"&C71","v":"Välj Juridiskt Namn"},{"$f":"D71","v":"Förvaltningens avtalsnummer "},"Organisations-nummer","Adress","Postnummer","Postadress","Telefon Växel","Telefon kundtjänst","Hemsida","Kontaktperson ","Telefon","E-post kontaktperson","Befattning Kontaktperson","Fax","E-post Gruppbrevlåda"]
[null,null,"Välj Juridiskt Namn 2","Förvaltningens avtalsnummer  2","Organisations-nummer 2","Adress 2","Postnummer 2","Postadress 2","Telefon Växel 2","Telefon kundtjänst 2","Hemsida 2","Kontaktperson  2","Telefon 2","E-post kontaktperson 2","Befattning Kontaktperson 2","Fax 2","E-post Gruppbrevlåda 2"]
[]
[]
[]
[]
[]
[]
[]
[]
[]
[]
[]
[]
[]
[]
[]
[]
[null,null,"TblSpecTjnstr"]
[null,null,"Välj roll"]
[null,null,{"$f":"IF('2 Specifikation'!C41=\"\",\"\",'2 Specifikation'!B41&\" - \"&'2 Specifikation'!C41)","v":""}]
[null,null,{"$f":"IF('2 Specifikation'!C42=\"\",\"\",'2 Specifikation'!B42&\" - \"&'2 Specifikation'!C42)","v":""}]
[null,null,{"$f":"IF('2 Specifikation'!C43=\"\",\"\",'2 Specifikation'!B43&\" - \"&'2 Specifikation'!C43)","v":""}]
[null,null,{"$f":"IF('2 Specifikation'!C44=\"\",\"\",'2 Specifikation'!B44&\" - \"&'2 Specifikation'!C44)","v":""}]
[null,null,{"$f":"IF('2 Specifikation'!C45=\"\",\"\",'2 Specifikation'!B45&\" - \"&'2 Specifikation'!C45)","v":""}]
[null,null,{"$f":"IF('2 Specifikation'!C46=\"\",\"\",'2 Specifikation'!B46&\" - \"&'2 Specifikation'!C46)","v":""}]
[null,null,{"$f":"IF('2 Specifikation'!C47=\"\",\"\",'2 Specifikation'!B47&\" - \"&'2 Specifikation'!C47)","v":""}]
[null,null,{"$f":"IF('2 Specifikation'!C48=\"\",\"\",'2 Specifikation'!B48&\" - \"&'2 Specifikation'!C48)","v":""}]
[null,null,{"$f":"IF('2 Specifikation'!C49=\"\",\"\",'2 Specifikation'!B49&\" - \"&'2 Specifikation'!C49)","v":""}]
[null,null,{"$f":"IF('2 Specifikation'!C50=\"\",\"\",'2 Specifikation'!B50&\" - \"&'2 Specifikation'!C50)","v":""}]
[null,null,{"$f":"IF('2 Specifikation'!C51=\"\",\"\",'2 Specifikation'!B51&\" - \"&'2 Specifikation'!C51)","v":""}]
[null,null,{"$f":"IF('2 Specifikation'!C52=\"\",\"\",'2 Specifikation'!B52&\" - \"&'2 Specifikation'!C52)","v":""}]
[null,null,{"$f":"IF('2 Specifikation'!C53=\"\",\"\",'2 Specifikation'!B53&\" - \"&'2 Specifikation'!C53)","v":""}]
[null,null,{"$f":"IF('2 Specifikation'!C54=\"\",\"\",'2 Specifikation'!B54&\" - \"&'2 Specifikation'!C54)","v":""}]
[null,null,{"$f":"IF('2 Specifikation'!C55=\"\",\"\",'2 Specifikation'!B55&\" - \"&'2 Specifikation'!C55)","v":""}]
[null,null,{"$f":"IF('2 Specifikation'!C56=\"\",\"\",'2 Specifikation'!B56&\" - \"&'2 Specifikation'!C56)","v":""}]
[null,null,{"$f":"IF('2 Specifikation'!C57=\"\",\"\",'2 Specifikation'!B57&\" - \"&'2 Specifikation'!C57)","v":""}]
[null,null,{"$f":"IF('2 Specifikation'!C58=\"\",\"\",'2 Specifikation'!B58&\" - \"&'2 Specifikation'!C58)","v":""}]
[null,null,{"$f":"IF('2 Specifikation'!C59=\"\",\"\",'2 Specifikation'!B59&\" - \"&'2 Specifikation'!C59)","v":""}]
[null,null,{"$f":"IF('2 Specifikation'!C60=\"\",\"\",'2 Specifikation'!B60&\" - \"&'2 Specifikation'!C60)","v":""}]
[null,null,{"$f":"IF('2 Specifikation'!C61=\"\",\"\",'2 Specifikation'!B61&\" - \"&'2 Specifikation'!C61)","v":""}]

{"sheet":"SysAdmin","index":4,"n_rows":12,"n_cols":5,"rows_kept":12,"cut":false,"hidden":true,"merged":[]}
["LockStatus",false]
["UKey","Förvaltning21",null,2,{"$f":"INDEX(E3:E5,D2)","v":"Avroppsblanketten är nu upplåst, klicka här för att låsa avropsblanketten."}]
["pkey","Förvaltning21",null,null,"Adminläge! Klicka här för att låsa vita celler."]
["Wkey","Förvaltning21","RGB",null,"Avroppsblanketten är nu upplåst, klicka här för att låsa avropsblanketten."]
["YColor"," ","255, 255, 153",null,"Avroppsblanketten är nu låst, klicka här för att låsa upp avropsblanketten."]
[null,null,"204, 255, 255"]
[null,null,"150, 150, 150"]
[null,null,"204, 255, 204"]
[null,null,"250, 191, 143"]
[null,null,null,null,"Grund för tilldelning av kontrakt & Utvärderingsmodell"]
[null,null,null,null,{"$f":"VALUE(IF(ISNUMBER(SEARCH(\"2\",DpDwnTDV))=TRUE,\"2\",\"1\"))","v":2}]
[null,null,null,null,{"$f":"\"Ut\"&IF(ISNUMBER(SEARCH(\"1\",DpDwnUtvddrop))=TRUE,\"1\",IF(ISNUMBER(SEARCH(\"2\",DpDwnUtvddrop))=TRUE,\"2\",IF(ISNUMBER(SEARCH(\"3\",DpDwnUtvddrop))=TRUE,\"3\")))","v":"UtFALSKT"}]